[Event "French-ch U16-U18 2024"]
[Site "Agen"]
[Date "2024.04.20"]
[Round "8.16"]
[White "Razafindratsima, Timothe"]
[Black "Trabet, Mathis"]
[Result "1-0"]
[ECO "B47"]
[WhiteElo "2438"]
[BlackElo "2167"]
[Annotator "TA"]
[PlyCount "131"]
[EventDate "2024.04.14"]
[EventType "swiss"]
[EventCountry "FRA"]
[SourceTitle "playchess.com"]
[Source "ChessBase"]
[SourceQuality "1"]
[TimeControl "5400+30"]

{[%evp 51,131,-115,-115,-108,-52,-46,-31,-30,-31,-27,0,-48,0,0,0,0,0,-8,-2,-50,-29,-81,-12,-29,406,386,394,286,292,277,290,302,294,289,283,284,269,288,215,284,263,268,277,202,260,71,52,46,61,58,106,94,111,111,111,97,110,93,289,274,243,173,173,173,493,493,486,417,899,899,844,822,29969,29973,29973,29973,29976,29972,29987,29988,29987,1028]} 1. e4 {[%emt 0:00:02]} c5 {[%emt 0:00:06]} 2. Nf3 {[%emt 0:00:07]} e6 {[%emt 0:00:09]} 3. d4 {[%emt 0:00:07]} cxd4 {[%emt 0:00:07]} 4. Nxd4 {[%emt 0:00:06]} Nc6 {[%emt 0:00:15]} 5. Nc3 {[%emt 0:00:06]} Qc7 {[%emt 0:00:15]} 6. Qd3 {[%emt 0:00:23] B47: Sicilian: Taimanov: 5 Nc3 Qc7 6 f4, 6 g3 and 6 Be2.} Nf6 {[%emt 0:01:27]} 7. Ndb5 {[%emt 0:00:11]} Qb8 {[%emt 0:00:30]} 8. Qg3 {[%emt 0:00:19]} d6 {[%emt 0:00:09]} 9. Be3 {[%emt 0:00:02]} a6 {[%emt 0:00:28]} 10. Nd4 {[%emt 0:00:05]} h5 {[%emt 0:00:30]} 11. f3 {[%emt 0:00:08]} Bd7 {[%emt 0:02:47]} 12. O-O-O {[%emt 0:04:59]} b5 {[%emt 0:01:48]} 13. Nxc6 {[%emt 0:02:12]} Bxc6 {[%emt 0:00:06]} 14. h4 {[%emt 0:00:15]} b4 {[%emt 0:04:33]} 15. Ne2 {[%emt 0:00:22]} e5 {[%emt 0:00:40]} 16. Kb1 $146 {[%emt 0:05:09]} ({Predecessor:} 16. Bg5 Qc7 17. Qf2 Ba4 18. b3 Bb5 19. Ng3 Nd7 20. Nf5 g6 21. Ne3 f6 22. Nd5 {1-0 Gschnitzer,A (2402)-Testeshnikov,N (2138) Deizisau Autumn op 17th 2023 (4)}) 16... Qc7 {[%emt 0:17:37]} 17. Nc1 {[%emt 0:08:45]} a5 {[%emt 0:04:02]} 18. Qe1 {[%emt 0:10:15]} Rb8 {[%emt 0:04:12]} 19. Nd3 {[%emt 0:07:27]} Be7 {[%emt 0:01:57]} 20. Bg5 {[%emt 0:05:44]} Qb7 {[%emt 0:08:12]} 21. Bxf6 {[%emt 0:08:54]} Bxf6 {[%emt 0:02:30]} 22. Nc1 {[%emt 0:01:23]} d5 {[%emt 0:08:13]} 23. g4 {[%emt 0:17:26]} hxg4 {[%emt 0:10:03]} 24. fxg4 {[%emt 0:00:01]} dxe4 {[%emt 0:00:29]} 25. Bg2 {[%emt 0:00:23]} Rd8 {[%emt 0:02:03]} 26. Nb3 {[%emt 0:04:32]} Rxd1+ {[%emt 0:05:30]} 27. Qxd1 {[%emt 0:00:00]} Qc7 {[%emt 0:02:51]} (27... Bxh4 28. Nxa5 Qb5 29. Nxc6 Qxc6 30. g5 $16 (30. Qe2 Rh6 $11)) ({Black should play} 27... Qd7 $17 28. Nxa5 Qxd1+ (28... Bxh4 29. Nxc6 Qxc6 30. g5 $16) 29. Rxd1 Bd7) 28. g5 $1 $15 {[%emt 0:03:24]} Be7 {[%emt 0:00:27]} 29. Qe2 $1 {[%emt 0:00:01]} a4 {[%emt 0:03:27]} 30. Nd2 {[%emt 0:00:00]} Qb7 {[%emt 0:06:44]} 31. Nxe4 {[%emt 0:00:53]} (31. Bxe4 $11 {is more appropriate.} Bxe4 32. Nxe4) 31... Qb5 {[%emt 0:04:36]} (31... O-O $15) 32. c4 $11 {[%emt 0:01:44]} bxc3 {[%emt 0:03:03]} 33. Nxc3 {[%emt 0:00:01]} Qb7 {[%emt 0:00:19]} 34. Ne4 {[%emt 0:01:49]} a3 {[%emt 0:01:36]} 35. b3 {[%emt 0:00:57]} (35. Rc1 $11 Qxb2+ (35... Rxh4 $2 36. Nd6+ Bxd6 37. Bxc6+ $18) 36. Qxb2 Bxe4+ 37. Bxe4 axb2 38. Rc4 (38. Rc8+ Bd8 $15)) 35... Qb6 {[%emt 0:00:54]} 36. Qc4 {[%emt 0:06:30]} (36. Nc3 $11 {remains equal.}) 36... Bd7 {[%emt 0:02:30]} (36... Bb7 $17 {White must now prevent ...0-0.} 37. Qc3 f5 38. gxf6 gxf6) 37. Rd1 {[%emt 0:01:03]} Qb5 $2 {[%emt 0:02:25][%mdl 8192]} (37... g6 $11 {and Black is okay.} 38. Qd5 Qe6 39. Nf6+ (39. Qa8+ Bc8 $17) 39... Bxf6 40. gxf6 Qxd5 (40... Rxh4 41. Qa8+ Bc8 42. Bc6+) 41. Rxd5 Bf5+ (41... Rxh4 42. Rxe5+ Be6 43. Ra5 $15) 42. Kc1 Rxh4) 38. Qc7 $1 $18 {[%emt 0:07:34]} (38. Bh3 Bc6 39. Rc1 (39. Qxc6+ $2 Qxc6 40. Bg2 Qg6 $19) 39... Qxc4 40. Rxc4 Bb7 $17 (40... Rxh4 41. Nd6+ Bxd6 42. Rxh4 $14)) 38... Rxh4 {[%emt 0:00:02]} 39. Rxd7 {[%emt 0:03:09]} Qxd7 {[%emt 0:00:15]} 40. Nf6+ $1 {[%emt 0:00:23]} gxf6 {[%emt 0:00:33]} 41. Bc6 {[%emt 0:00:26]} Rh1+ {[%emt 0:01:10]} 42. Kc2 $1 {[%emt 0:00:04]} Rh2+ {[%emt 0:00:13]} 43. Kc3 $1 {[%emt 0:00:29]} (43. Kc1 Rh1+ 44. Kc2 Rh2+ 45. Kc3 (45. Kc1 Rh1+ 46. Kc2 $14) 45... Rh3+ (45... Bb4+ $2 46. Kxb4 Rh4+ 47. Kxa3 $18) 46. Kc4 Rh4+ 47. Kb5 Rb4+ 48. Ka6 Rd4 49. gxf6 (49. Bxd7+ Rxd7 50. Qb8+ Rd8 $14) 49... Bxf6 $18) 43... Rh3+ {[%emt 0:00:20]} (43... Bb4+ $2 44. Kxb4 Kf8 45. Qxd7 $18 (45. Bxd7 Kg7 $18)) 44. Kc4 $1 {[%emt 0:00:20]} Rh4+ {[%emt 0:00:06]} 45. Kb5 {[%emt 0:00:54]} Rb4+ {[%emt 0:01:25]} 46. Ka6 {[%emt 0:00:24]} Rd4 {[%emt 0:00:19]} 47. gxf6 {[%emt 0:03:19]} (47. Bxd7+ Rxd7 48. Qc8+ Rd8 49. Qc6+ Kf8 $14) 47... Bxf6 {[%emt 0:00:43]} 48. Qb8+ $2 {[%emt 0:01:03]} (48. Bxd7+ Rxd7 49. Qc6 Bg5 $11) (48. b4 $18 {is more deadly.}) 48... Ke7 $16 {[%emt 0:00:01]} 49. Bxd7 {[%emt 0:00:04]} Kxd7 {[%emt 0:00:30]} 50. Qf8 {[%emt 0:00:35]} Rd6+ {[%emt 0:01:36]} (50... Ke6 $14 {feels stronger.}) 51. Kb7 $1 $16 {[%emt 0:00:03]} Ke6 {[%emt 0:00:04]} 52. Qc8+ {[%emt 0:00:03]} Ke7 {[%emt 0:00:09]} 53. Qc5 {[%emt 0:00:03]} Ke6 {[%emt 0:00:32]} (53... e4 $2 54. Kc7 $18 (54. Qxa3 Bd4 $11) (54. Qxa3 e3 $11)) 54. Qxa3 {[%emt 0:00:34]} Be7 $2 {[%emt 0:00:31]} (54... Rd7+ $16 55. Kc6 e4) 55. Qa4 $1 $18 {[%emt 0:01:40]} Rd7+ {[%emt 0:01:08]} 56. Kc6 {[%emt 0:00:05]} Rd4 {[%emt 0:00:27] [#]} 57. Qb5 $1 {[%emt 0:00:25]} f5 $2 {[%emt 0:00:41]} (57... Rd6+ 58. Kc7 Rd2 (58... Bd8+ 59. Kc8 $11) 59. Qc4+ Kf5 60. Qf1+ (60. Qxf7+ Bf6 $16) 60... Kg6 61. a4 $18) (57... Ba3 {is tougher.} 58. Qb7 Kf6) 58. a4 $18 {[%emt 0:00:34]} f4 {[%emt 0:00:29]} 59. a5 {[%emt 0:00:15]} f3 {[%emt 0:00:36] [#]} (59... Rd6+ $142 60. Kc7 Bd8+ 61. Kb7 Bxa5 62. Qxa5 f3) 60. a6 $1 $18 {[%emt 0:00:07]} Rd6+ {[%emt 0:00:30]} 61. Kb7 {[%emt 0:01:14]} Rd7+ {[%emt 0:00:29]} 62. Qxd7+ {[%emt 0:00:18]} Kxd7 {[%emt 0:00:06]} 63. a7 {[%emt 0:00:02]} f2 {[%emt 0:00:27]} 64. a8=Q {[%emt 0:02:38]} (64. a8=B {gets mated.} f1=Q (64... f1=R 65. Kb6 $19) 65. b4 Bd8 (65... Bxb4 {is a self mate.} 66. Kb6 Qc4 67. Bh1 Bc5+ 68. Kb7 Qb4+ 69. Ka8 Qa5+ 70. Kb8 Qa7#) 66. Ka7 Qf2+ 67. Kb8 Bc7+ 68. Kb7 Qb6#) 64... Bc5 {[%emt 0:00:10]} 65. Qc8+ {[%emt 0:00:00]} Kd6 {[%emt 0:00:03]} 66. Qc6+ {[%emt 0:00:00]} 1-0

[Event "French-ch U16-U18 2024"]
[Site "Agen"]
[Date "2024.04.20"]
[Round "8.17"]
[White "Mendoza, Mael"]
[Black "Makkar, Rajat"]
[Result "0-1"]
[ECO "B51"]
[WhiteElo "2088"]
[BlackElo "2452"]
[Annotator "TA"]
[PlyCount "98"]
[EventDate "2024.04.14"]
[EventType "swiss"]
[EventCountry "FRA"]
[SourceTitle "playchess.com"]
[Source "ChessBase"]
[SourceQuality "1"]
[TimeControl "5400+30"]

{[%evp 16,98,33,21,17,3,0,0,23,20,19,0,16,0,0,2,20,8,11,0,0,0,12,-66,-68,-62,-68,-74,-68,-141,-144,-128,-127,-116,-100,-191,-188,-177,-139,-229,-205,-200,-168,-274,-280,-275,-251,-217,-258,-4886,-588,-586,-573,-592,-548,-561,-555,-555,-584,-581,-520,-571,-556,-502,-563,-550,-541,-795,-619,-683,-502,-502,-502,-502,-502,-502,-502,-502,-502,-29977,-502,-502,-502,-29980,-29981]} 1. e4 {[%emt 0:00:07]} c5 {[%emt 0:00:07]} 2. Nf3 {[%emt 0:00:07]} Nc6 {[%emt 0:00:05]} 3. Bb5 {[%emt 0:00:24]} d6 {[%emt 0:00:06]} 4. O-O {[%emt 0:00:29]} Bd7 {[%emt 0:00:20]} 5. Re1 {[%emt 0:00:33]} a6 {[%emt 0:00:24]} 6. Bf1 {[%emt 0:00:28]} Nf6 {[%emt 0:00:15]} 7. c3 {[%emt 0:00:30]} Bg4 {[%emt 0:00:15]} 8. h3 {[%emt 0:00:39]} Bxf3 {[%emt 0:00:24]} 9. Qxf3 {[%emt 0:00:11]} e6 {[%emt 0:00:15]} 10. Qe3 {[%emt 0:21:35]} d5 {[%emt 0:13:02]} 11. exd5 {[%emt 0:14:44]} Qxd5 {[%emt 0:04:52] The position is equal.} 12. g3 {[%emt 0:04:51]} Be7 {[%emt 0:01:15]} 13. Bg2 {[%emt 0:01:19]} Qd7 {[%emt 0:00:28]} 14. Na3 {[%emt 0:09:00]} b5 {[%emt 0:04:08]} 15. Nc2 {[%emt 0:05:22]} Rc8 {[%emt 0:06:09]} 16. a4 {[%emt 0:05:21]} O-O {[%emt 0:08:01]} 17. axb5 {[%emt 0:02:52]} axb5 {[%emt 0:00:48]} 18. Qe2 {[%emt 0:07:39]} c4 {[%emt 0:03:18][%cal Bc5c4,Bc4b3][%mdl 32] [#]} 19. b3 {[%emt 0:03:40]} cxb3 $15 {[%emt 0:14:27]} 20. Bxc6 {[%emt 0:00:37]} Rxc6 {[%emt 0:05:01]} 21. Nd4 {[%emt 0:00:20]} Rc4 {[%emt 0:01:00][%cal Oe6e5]} 22. Ba3 {[%emt 0:07:06]} (22. Bb2 $15) 22... Bxa3 $17 {[%emt 0:04:54]} 23. Rxa3 {[%emt 0:00:06] [#]} e5 $1 {[%emt 0:02:40][%mdl 512]} 24. Nxb3 {[%emt 0:01:51]} Qxh3 {[%emt 0:01:34] And now ...Re4 would win. Black is more active.} 25. Qf3 {[%emt 0:01:33]} (25. Qf1 $17 {was forced.} Qe6 26. Nd4) 25... e4 $36 {[%emt 0:03:11][%mdl 2048] Black is really pushing.} 26. Qg2 {[%emt 0:00:16]} Qd7 {[%emt 0:00:11]} 27. Ra6 {[%emt 0:03:09]} (27. Rea1 $17) 27... b4 {[%emt 0:03:30]} 28. Qf1 {[%emt 0:00:26]} Rfc8 {[%emt 0:01:33]} 29. Na5 {[%emt 0:01:55]} (29. Ra8 $142) 29... R4c7 {[%emt 0:01:45]} 30. cxb4 {[%emt 0:00:53]} Qxd2 {[%emt 0:00:47]} 31. b5 {[%emt 0:02:14]} e3 {[%emt 0:03:36] aiming for ...Ng4.} 32. b6 $2 {[%emt 0:01:43]} (32. Nc6 Ng4 33. Re2) 32... Rc2 {[%emt 0:01:44]} ({Stronger than} 32... Rc1 33. Rxc1 exf2+ 34. Kg2 Qd5+ 35. Kxf2 (35. Kh2 $2 Ng4+ 36. Kh3 Rxc1 $19) 35... Ng4+ (35... Qd2+ 36. Kg1 $11) 36. Kg1 Qd4+ 37. Kh1 (37. Kg2 $2 Ne3+ 38. Kf3 Re8 $19) 37... Qd5+ (37... Qe4+ 38. Kg1 $11) 38. Kg1 Qd4+ 39. Kh1 (39. Kg2 $2 Ne3+ 40. Kf3 Re8 $19) 39... Qd5+ (39... Qe4+ 40. Kg1 $11) 40. Kg1 $11) (32... Ng4 $142 {[%cal Re3f2]} 33. Kg2 exf2) 33. Rxe3 {[%emt 0:00:59]} Rc1 {[%emt 0:00:29][%cal Of6g4]} 34. b7 {[%emt 0:00:04]} Rxf1+ {[%emt 0:01:10]} 35. Kxf1 {[%emt 0:00:01] [#]} Qd1+ $1 {[%emt 0:00:35]} 36. Kg2 {[%emt 0:00:44]} Qd5+ {[%emt 0:03:21]} 37. Rf3 {[%emt 0:00:13]} Re8 {[%emt 0:01:06]} 38. Nc6 {[%emt 0:00:29]} Qb5 {[%emt 0:01:20]} 39. b8=Q {[%emt 0:03:45]} Rxb8 {[%emt 0:00:14]} 40. Nxb8 {[%emt 0:00:01]} Qxb8 {[%emt 0:00:26]} 41. Raxf6 {[%emt 0:02:12]} gxf6 {[%emt 0:00:15]} 42. Rxf6 {[%emt 0:00:02][%mdl 4096] Endgame. KQ-KR} Kg7 {[%emt 0:00:05]} 43. Rf4 {[%emt 0:00:43]} h5 {[%emt 0:00:06]} 44. Kh3 {[%emt 0:00:44]} Kg6 {[%emt 0:00:14]} 45. Kh2 {[%emt 0:00:30]} f5 {[%emt 0:00:09]} 46. Kg2 {[%emt 0:00:30]} Kg5 {[%emt 0:00:09][%cal Ob8f4]} 47. Kh3 {[%emt 0:00:22]} (47. Rh4 $19 Qb2 48. Rf4) 47... Qb7 {[%emt 0:00:11]} (47... Qb6 $142 48. Kg2 Qc6+ 49. Kh2 Qc1 50. Rh4 Qf1 51. Ra4 Qxf2+ 52. Kh3 Qg1 53. Ra2 Qh1+ 54. Rh2 Qf3 55. Rg2 h4 56. Kh2 h3 (56... hxg3+ {leads to mate.} 57. Rxg3+ Kf4 58. Rxf3+ Kxf3 59. Kh1 f4 60. Kh2 Ke3 61. Kh3 f3 62. Kg4 f2 63. Kf5 f1=Q+ 64. Ke5 Qd3 65. Kf6 Kf4 66. Kf7 Qd6 67. Ke8 Kf5 68. Kf7 Qc7+ 69. Kf8 Kf6 70. Kg8 Qg7#) 57. Rc2 f4 58. g4 Kxg4 59. Rb2 Qg3+ 60. Kh1 Qc3 (60... Qe1+ 61. Kh2 Qe5 62. Rc2 f3+ 63. Kg1 h2+ 64. Kh1 Kh3 65. Rc1 Qg3 66. Rf1 Qg2#) 61. Rg2+ hxg2+ 62. Kxg2 Qd2+ 63. Kg1 Kg3 64. Kh1 Qh2#) 48. Kh2 {[%emt 0:00:13]} Qc7 {[%emt 0:00:05][%cal Oc7f4] ( -> ...Qxf4!)} 49. Kh3 {[%emt 0:00:43]} (49. Rh4 $19 Qc2 50. Kg1) 49... Qc1 {[%emt 0:00:04] Weighted Error Value: White=0.51/Black=0.26 (precise) .  Mistake:       	White=8     	Black=2      Inaccurate:     	White=1     	---        OK:         	White=10    	Black=12     Best:        	White=5     	Black=6      Strong:       	---       	Black=1      Brilliant:      	---       	Black=1} 0-1

[Event "French-ch U16-U18 2024"]
[Site "Agen"]
[Date "2024.04.20"]
[Round "8.18"]
[White "Belkaid, Sohan"]
[Black "Tulliez, Andre"]
[Result "1-0"]
[ECO "B56"]
[WhiteElo "2412"]
[BlackElo "2157"]
[Annotator "TA"]
[PlyCount "73"]
[EventDate "2024.04.14"]
[EventType "swiss"]
[EventCountry "FRA"]
[SourceTitle "playchess.com"]
[Source "ChessBase"]
[SourceQuality "1"]
[TimeControl "5400+30"]

{[%evp 14,73,63,47,47,41,58,51,53,57,45,27,25,28,33,18,35,4,37,31,61,71,81,81,81,81,81,81,94,87,86,81,94,98,113,104,109,91,94,94,117,56,107,103,137,137,137,110,177,181,260,274,274,270,258,233,29975,29976,29976,29977,29977,29978]} 1. e4 {[%emt 0:00:06]} c5 {[%emt 0:00:04]} 2. Nf3 {[%emt 0:00:06][%cal Bg1f3,Bf3d4,Bd4f5][%mdl 32]} d6 {[%emt 0:00:03]} 3. d4 {[%emt 0:00:08]} cxd4 {[%emt 0:00:03]} 4. Nxd4 {[%emt 0:00:07]} Nf6 {[%emt 0:00:02]} 5. Nc3 {[%emt 0:00:10]} e5 {[%emt 0:00:03]} 6. Bb5+ {[%emt 0:06:56][%cal Bf1b5,Bb5a4,Ba4b3][%mdl 32]} Nbd7 {[%emt 0:00:06]} 7. Nf5 {[%emt 0:00:06]} a6 {[%emt 0:00:03]} 8. Ba4 {[%emt 0:00:05] White has more active pieces.} (8. Nxd6+ $2 Bxd6 9. Qxd6 axb5 $17) 8... b5 {[%emt 0:00:03]} 9. Bb3 {[%emt 0:00:06]} Nc5 {[%emt 0:00:04][%cal Oc5b3]} 10. Bg5 {[%emt 0:00:06] Hoping for Bd5.} Bxf5 {[%emt 0:00:03] White is slightly better.} 11. exf5 {[%emt 0:00:06]} Be7 {[%emt 0:00:03]} 12. Bxf6 {[%emt 0:00:08]} Bxf6 {[%emt 0:00:04]} 13. Qd5 {[%emt 0:00:06][%csl Gb3][%cal Rd5f7]} O-O {[%emt 0:00:03][%cal Oe5e4]} 14. Ne4 {[%emt 0:00:21]} a5 {[%emt 0:25:00] ...a4 would now be deadly.} 15. a3 {[%emt 0:09:16]} Rc8 {[%emt 0:14:47]} 16. O-O {[%emt 0:10:11]} Nxe4 {[%emt 0:01:12]} 17. Qxe4 {[%emt 0:00:07]} Qb6 {[%emt 0:00:30]} 18. c3 {[%emt 0:06:50]} Rc5 {[%emt 0:07:38] Black is weak on the light squares} 19. Rad1 {[%emt 0:03:12]} Rfc8 {[%emt 0:09:19]} 20. g3 {[%emt 0:03:50]} Kf8 {[%emt 0:04:06]} 21. Rd3 {[%emt 0:16:31]} Qc6 {[%emt 0:01:37]} 22. Bd5 {[%emt 0:00:54]} Qb6 {[%emt 0:00:01]} 23. h4 {[%emt 0:04:09]} Qd8 {[%emt 0:01:24]} 24. Rfd1 {[%emt 0:01:57]} Qe7 {[%emt 0:01:22]} 25. Ba2 {[%emt 0:04:37]} Rd8 {[%emt 0:00:52]} 26. R1d2 {[%emt 0:03:57]} Qc7 {[%emt 0:00:43]} 27. b4 {[%emt 0:03:13]} ({White should try} 27. Qe2 $16) 27... axb4 {[%emt 0:08:05]} (27... Rxc3 $14 28. bxa5 Rxd3 29. Rxd3 Qxa5) 28. cxb4 $16 {[%emt 0:00:43]} Qc6 {[%emt 0:01:15]} 29. Bd5 $36 {[%emt 0:01:39][%mdl 2048] Black is under strong pressure.} Rc1+ {[%emt 0:00:02]} 30. Kg2 {[%emt 0:00:11]} Qb6 {[%emt 0:00:15]} (30... Qd7 $16 {was necessary.} 31. Qf3 Qc7) 31. Qg4 {[%emt 0:01:50] aiming for Qh5.} Qa7 {[%emt 0:03:33] [#]} (31... Kg8 $142 32. Qe2 Rb8) 32. Qh5 $1 $18 {[%emt 0:00:43]} Kg8 {[%emt 0:03:17]} 33. g4 {[%emt 0:01:17] Black must now prevent g5.} e4 {[%emt 0:00:20]} 34. Re3 {[%emt 0:02:57][%cal Og4g5] Strongly threatening g5!} ({Don't take} 34. Bxe4 g6 35. fxg6 hxg6 36. Qxb5 Bxh4 $18) 34... Bd4 $2 {[%emt 0:00:30] [#]} (34... Bc3 $18) 35. Rxd4 $1 {[%emt 0:01:10][%mdl 512] White mates.} Qxd4 {[%emt 0:00:06]} 36. Qxf7+ {[%emt 0:00:05]} (36. Bxf7+ Kh8 37. Bg6 h6 $15) 36... Kh8 {[%emt 0:00:02]} 37. Rxe4 {[%emt 0:00:02] Weighted Error Value: White=0.06 (flawless) /Black=0.33.  Mistake:       	White=1     	Black=4      Inaccurate:     	White=1     	Black=3      OK:         	White=14    	Black=9      Best:        	White=1     	---        Strong:       	White=1     	---        Brilliant:      	White=1     	---} ({Weaker is} 37. Bxe4 d5 38. Bf3 Rcc8 $14) 1-0

[Event "French-ch U16-U18 2024"]
[Site "Agen"]
[Date "2024.04.20"]
[Round "8.19"]
[White "Fischler, Oscar"]
[Black "Fraile, Lucas"]
[Result "1-0"]
[ECO "A58"]
[WhiteElo "2275"]
[BlackElo "2151"]
[Annotator "TA"]
[PlyCount "101"]
[EventDate "2024.04.14"]
[EventType "swiss"]
[EventCountry "FRA"]
[SourceTitle "playchess.com"]
[Source "ChessBase"]
[SourceQuality "1"]
[TimeControl "5400+30"]

{[%evp 9,101,21,50,38,56,55,44,33,40,54,41,55,47,37,33,31,39,35,43,37,34,34,36,42,50,49,45,49,44,37,52,48,41,11,9,15,14,16,15,6,37,29,74,65,95,60,156,161,154,141,223,227,259,266,254,253,253,252,382,351,352,333,510,508,683,573,657,504,767,748,1261,804,29946,8701,2778,2281,7092,1874,29964,29965,29975,29975,29979,29980,29980,29981,29982,29983,29983,29984,29984,29985,29990,29988]} 1. d4 {[%emt 0:00:01]} Nf6 {[%emt 0:01:05]} 2. c4 {[%emt 0:00:04][%cal Bc2c4,Bc4b5][%mdl 32]} c5 {[%emt 0:00:38]} 3. d5 {[%emt 0:00:02]} b5 {[%emt 0:00:06]} 4. cxb5 {[%emt 0:00:03]} a6 {[%emt 0:00:05]} 5. bxa6 {[%emt 0:00:02]} g6 {[%emt 0:00:07][%cal Of8g7]} 6. Nc3 {[%emt 0:00:04][%cal Oa6a7]} Bg7 {[%emt 0:00:06][%cal Oe8g8]} 7. e4 {[%emt 0:00:03] And now e5 would win.} O-O {[%emt 0:00:06][%cal Oe7e6]} 8. a7 {[%emt 0:00:02] White is slightly better.} Rxa7 {[%emt 0:00:05]} 9. Nf3 {[%emt 0:00:02]} e6 {[%emt 0:00:12]} 10. Be2 {[%emt 0:00:10]} exd5 {[%emt 0:00:06]} 11. exd5 {[%emt 0:00:02]} d6 {[%emt 0:00:09]} 12. O-O {[%emt 0:00:14]} Na6 {[%emt 0:00:03]} 13. Nb5 {[%emt 0:00:12]} Rd7 {[%emt 0:00:05]} 14. Bc4 {[%emt 0:00:07]} Bb7 {[%emt 0:01:17]} 15. Bg5 {[%emt 0:00:09]} h6 {[%emt 0:00:38]} 16. Bh4 {[%emt 0:00:04]} Qa8 {[%emt 0:00:40]} 17. Bxf6 {[%emt 0:03:10]} Bxf6 {[%emt 0:00:03]} 18. Qd2 {[%emt 0:00:07]} Bg7 {[%emt 0:01:44]} 19. Rad1 {[%emt 0:12:32]} Nc7 {[%emt 0:06:38]} 20. Nxc7 {[%emt 0:13:14]} Rxc7 {[%emt 0:00:02]} 21. Rfe1 {[%emt 0:03:50]} Ba6 {[%emt 0:08:13] This pair of bishops is nice.} 22. b3 {[%emt 0:02:02]} Bxc4 {[%emt 0:06:45]} 23. bxc4 {[%emt 0:00:02]} Qa4 {[%emt 0:00:50]} 24. Qf4 {[%emt 0:04:01]} Rd8 {[%emt 1:12:47]} 25. h4 {[%emt 0:05:46][%cal Bh2h4,Bh4h5][%mdl 32]} Kh7 {[%emt 0:00:00][%cal Og7c3]} 26. Rd3 {[%emt 0:14:41][%cal Bd1d3,Bd3e3,Be3e7][%mdl 32]} Rb7 {[%emt 0:00:00] White leaves nothing to chance now.} 27. h5 {[%emt 0:06:16]} Qxa2 {[%emt 0:00:00] [#]} (27... g5 $14 28. Qf5+ Kh8) 28. Rde3 $1 $16 {[%emt 0:13:44]} Qc2 {[%emt 0:00:00]} 29. Re7 {[%emt 0:05:29]} ({Resist} 29. hxg6+ $6 fxg6 30. R3e2 Qf5 31. Qxf5 gxf5 $16) 29... Rdd7 {[%emt 0:00:00]} (29... Rxe7 $16 30. Rxe7 Qb1+ 31. Kh2 Rf8 32. Qxd6 (32. Rxf7 g5 $16) 32... g5 33. Qxc5 Qf5) 30. Qxf7 $40 {[%emt 0:01:26][%csl Ge7][%cal Rf7g7][%mdl 128] White has strong attack.} Rxe7 {[%emt 0:00:00]} 31. Rxe7 {[%emt 0:00:32]} Rxe7 {[%emt 0:00:00]} 32. hxg6+ {[%emt 0:00:12]} (32. Qxe7 gxh5 33. Qxd6 Qc1+ 34. Kh2 Qxc4 $16) 32... Qxg6 {[%emt 0:00:00]} 33. Qxe7 {[%emt 0:00:01][%mdl 4096] Endgame. KQB-KQN} Qf6 {[%emt 0:00:00]} (33... Qc2 {was called for.} 34. Qxd6 Qc1+ 35. Kh2 Qxc4) 34. Qe4+ {[%emt 0:02:20]} Qg6 {[%emt 0:00:00]} 35. Nd2 {[%emt 0:01:12]} Be5 {[%emt 0:00:20]} (35... h5 $142 36. Kh2 Bf6) 36. g3 {[%emt 0:00:57]} Kg7 {[%emt 0:00:26]} 37. Kg2 {[%emt 0:01:12]} Qf7 {[%emt 0:01:38]} 38. Qg4+ {[%emt 0:01:29]} Kh7 {[%emt 0:00:56]} (38... Qg6 $142 39. Qxg6+ Kxg6) 39. Ne4 {[%emt 0:00:19]} Qe7 {[%emt 0:00:46]} 40. Qe6 {[%emt 0:02:00]} Qxe6 {[%emt 0:00:33]} 41. dxe6 {[%emt 0:00:02] [#] White threatens e7 and mate. KB-KN} Kg6 {[%emt 0:00:23]} 42. f4 {[%emt 0:00:07]} Bd4 {[%emt 0:01:55]} 43. f5+ {[%emt 0:00:21]} (43. Nxd6 $142 Kf6 44. f5) 43... Kg7 {[%emt 0:00:10]} 44. Nxd6 {[%emt 0:00:04] White mates.} Kf8 {[%emt 0:00:54]} 45. g4 {[%emt 0:00:32]} Ke7 {[%emt 0:00:22]} 46. Ne4 {[%emt 0:00:03]} Be3 {[%emt 0:00:58]} 47. Kg3 {[%emt 0:00:26]} Bg1 {[%emt 0:00:07]} 48. Kh4 {[%emt 0:00:15]} Bd4 {[%emt 0:00:15]} 49. Kh5 {[%emt 0:00:08]} Be3 {[%emt 0:00:02]} 50. Kg6 {[%emt 0:00:11]} Ke8 {[%emt 0:00:31]} 51. f6 {[%emt 0:00:20] Weighted Error Value: White=0.06 (flawless) /Black=0.41.  Mistake:       	---       	Black=5      Inaccurate:     	White=2     	Black=5      OK:         	White=19    	Black=16     Best:        	White=1     	Black=1      Strong:       	White=1     	---} 1-0